bitfinex-derivatives/quotes_BNBF0:USTF0_20250417
["timestamp","ask_amount","ask_price","bid_price","bid_amount"]
[1744907092807,0.29397727,592.85,591.42,0.31037893]
[1744907093003,0.6376089,592.84,591.43,0.33816343]
[1744907093206,0.63761459,592.83,591.44,0.31037893]
[1744907093406,0.63762028,592.82,591.45,0.33815199]
[1744907093604,0.30024975,592.81,591.46,0.31037893]
[1744907093807,0.30024975,592.81,591.45,0.33815199]
[1744907094211,0.33737053,592.82,591.45,0.33815199]
[1744907094412,0.30027949,592.81,591.45,0.33815199]
[1744907094709,0.33738191,592.8,591.45,0.33815199]
[1744907094908,0.30027949,592.79,591.45,0.33815199]
[1744907095308,0.33739329,592.78,591.45,0.33815199]
[1744907095511,0.30027949,592.77,591.45,0.33815199]
[1744907095710,0.33740468,592.76,591.45,0.33815199]
[1744907095911,0.3002897,592.75,591.45,0.33815199]
[1744907096106,0.33741606,592.74,591.45,0.33815199]
[1744907096907,0.523,592.73,591.45,0.33815199]
[1744907097507,0.33742745,592.72,591.45,0.33815199]
[1744907099014,0.30029578,592.71,591.45,0.33815199]
[1744907099310,0.33743883,592.7,591.45,0.33815199]
[1744907100111,0.30029932,592.69,591.45,0.33815199]
[1744907100310,0.33745022,592.68,591.45,0.33815199]
[1744907100512,0.30029932,592.67,591.45,0.33815199]
[1744907100707,0.33746161,592.66,591.45,0.33815199]
[1744907100908,0.30029932,592.65,591.45,0.33815199]
[1744907101408,0.337473,592.64,591.45,0.33815199]
[1744907101614,0.30029932,592.63,591.45,0.33815199]
[1744907101909,0.33748439,592.62,591.45,0.33815199]
[1744907102108,0.30029932,592.61,591.45,0.33815199]
[1744907102311,0.33749578,592.6,591.45,0.33815199]
[1744907102507,0.30029932,592.59,591.45,0.33815199]
[1744907104014,0.30029932,592.59,591.46,0.31043683]
[1744907104714,0.33749578,592.6,591.45,0.33815199]
[1744907104913,0.3002954,592.59,591.46,0.31042784]
[1744907109418,0.3002954,592.59,591.47,0.33814056]
[1744907109618,0.3002954,592.59,591.48,0.31042784]
[1744907109814,0.3002954,592.59,591.49,0.33812913]
[1744907110014,0.3002954,592.59,591.5,0.31042784]
[1744907110315,0.3002954,592.59,591.51,0.33811769]
[1744907110519,0.3002954,592.59,591.52,0.31042784]
[1744907111018,0.3002954,592.59,591.53,0.33810626]
[1744907111217,0.3002954,592.59,591.54,0.31042784]
[1744907111414,0.3002954,592.59,591.55,0.33809483]
[1744907111613,0.33749578,592.6,591.56,0.31036492]
[1744907111917,0.3002328,592.59,591.56,0.31036492]
[1744907113120,0.33749578,592.6,591.55,0.33809483]
[1744907113320,0.30024032,592.59,591.56,0.31037246]
[1744907114618,0.30024032,592.59,591.55,0.33809483]
[1744907114824,0.33749578,592.6,591.55,0.33809483]
[1744907115022,0.30025948,592.59,591.55,0.33809483]
[1744907115824,0.30025948,592.59,591.56,0.31039267]
[1744907116524,0.30025288,592.58,591.57,0.31038511]
[1744907116819,0.30025288,592.57,591.55,0.33809483]
[1744907117023,0.30025288,592.59,591.56,0.31038711]
[1744907117224,0.30025288,592.56,591.56,0.31038711]
[1744907117519,0.30025288,592.55,591.56,0.31038711]
[1744907117723,0.30025288,592.54,591.56,0.31038711]
[1744907117923,0.30025288,592.59,591.56,0.31038711]
[1744907118120,0.3002723,592.58,591.55,0.33809483]
[1744907118318,0.3002723,592.59,591.55,0.33809483]
[1744907118520,0.3002723,592.58,591.55,0.33809483]
[1744907118722,0.3002723,592.57,591.55,0.33809483]
[1744907118919,0.3002723,592.59,591.55,0.33809483]
[1744907119124,0.3002723,592.58,591.55,0.33809483]
[1744907119326,0.3002723,592.59,591.55,0.33809483]
[1744907119525,0.3002723,592.58,591.55,0.33809483]
[1744907119723,0.3002723,592.57,591.55,0.33809483]
[1744907119920,0.3002723,592.59,591.55,0.33809483]
[1744907120123,0.3002723,592.58,591.55,0.33809483]
[1744907120324,0.3002723,592.59,591.55,0.33809483]
[1744907121721,0.3002723,592.59,591.55,0.90209483]
[1744907124327,0.3002723,592.59,591.56,0.31039769]
[1744907124527,0.33749578,592.6,591.55,0.90209483]
[1744907124723,0.30026046,592.59,591.56,0.31039274]
[1744907126033,0.30026046,592.59,591.55,0.90209483]
[1744907129331,0.33749578,592.6,591.55,0.90209483]
[1744907129528,0.30026568,592.59,591.55,0.90209483]
[1744907130835,0.591,592.58,591.55,0.90209483]
[1744907131137,0.30026568,592.57,591.55,0.90209483]
[1744907133138,0.30026568,592.57,591.55,1.47509483]
[1744907137343,0.591,592.58,591.55,1.47509483]
[1744907137647,0.30030068,592.57,591.55,1.47509483]
[1744907138145,0.591,592.58,591.55,1.47509483]
[1744907140846,0.591,592.58,591.55,2.21309483]
[1744907143052,0.30028982,592.57,591.55,2.21309483]
[1744907144248,0.591,592.58,591.55,2.21309483]
[1744907144453,0.30028645,592.57,591.55,2.21309483]
[1744907144653,0.591,592.58,591.55,2.21309483]
[1744907145455,0.30029886,592.57,591.55,2.21309483]
[1744907145658,0.591,592.58,591.55,2.21309483]
[1744907146058,0.30029746,592.57,591.55,2.21309483]
[1744907146251,0.591,592.58,591.55,2.21309483]
[1744907147558,0.30030362,592.57,591.55,2.21309483]
[1744907147758,0.591,592.58,591.55,2.21309483]
[1744907147959,0.33749578,592.6,591.55,2.21309483]
[1744907148360,0.30029943,592.59,591.55,2.21309483]
[1744907148561,0.6378009,592.59,591.55,2.21309483]
[1744907148761,0.30029943,592.58,591.55,2.21309483]
[1744907149062,0.33750147,592.59,591.55,2.21309483]
[1744907149262,0.3002986,592.58,591.55,2.21309483]
[1744907150761,0.33750147,592.59,591.55,2.21309483]
[1744907150962,0.30029422,592.58,591.55,2.21309483]
[1744907151163,0.33750147,592.59,591.55,2.21309483]
[1744907151661,0.731,592.58,591.55,2.21309483]
[1744907152767,0.33751286,592.57,591.55,2.21309483]
[1744907162270,0.3003015,592.56,591.55,2.21309483]
[1744907164469,0.33751286,592.57,591.55,2.21309483]
[1744907171279,0.30026145,592.56,591.55,2.21309483]
[1744907172681,0.30032269,592.55,591.55,2.21309483]
[1744907172880,0.30032269,592.56,591.55,2.21309483]
[1744907173077,0.30032269,592.55,591.55,2.21309483]
[1744907173275,0.30032269,592.56,591.55,2.21309483]
[1744907173479,0.30032269,592.55,591.55,2.21309483]
[1744907173681,0.30032269,592.56,591.55,2.21309483]
[1744907173881,0.30032269,592.55,591.55,2.21309483]
[1744907174082,0.30032269,592.56,591.55,2.21309483]
[1744907174283,0.33751286,592.57,591.55,2.21309483]
[1744907176180,0.30029259,592.56,591.55,2.21309483]
[1744907177982,0.33751286,592.57,591.55,2.21309483]
[1744907178385,0.30028389,592.56,591.55,2.21309483]
[1744907178988,0.33751286,592.57,591.55,2.21309483]
[1744907179189,0.30028993,592.56,591.55,2.21309483]
[1744907185392,0.33751286,592.57,591.55,2.21309483]
[1744907185592,0.593,592.55,591.55,2.21309483]
[1744907196298,0.593,592.55,591.56,0.33808912]
[1744907196599,0.593,592.55,591.57,0.31036179]
[1744907196801,0.30022978,592.54,591.57,0.31036179]
[1744907197099,0.30022978,592.54,591.58,0.33807769]
[1744907197300,0.593,592.55,591.58,0.33807769]
[1744907199599,0.593,592.55,591.59,0.525]
[1744907199798,0.593,592.55,591.6,0.33806626]
[1744907199994,0.593,592.55,591.61,0.619]
[1744907204505,0.593,592.55,591.62,0.33805483]
[1744907207112,0.593,592.55,591.63,0.31022192]
[1744907207412,0.593,592.55,591.65,0.33803769]
[1744907207611,0.593,592.55,591.66,0.31022192]
[1744907207814,0.593,592.55,591.68,0.33802055]
[1744907208009,0.593,592.55,591.69,0.31022192]
[1744907208210,0.593,592.55,591.71,0.33800341]
[1744907211715,0.593,592.55,591.72,0.31021079]
[1744907211915,0.593,592.55,591.73,0.33799198]
[1744907213115,0.593,592.55,591.74,0.31021401]
[1744907213315,0.593,592.55,591.73,0.33799198]
[1744907214216,0.593,592.55,591.74,0.31021157]
[1744907214413,0.593,592.55,591.75,0.33798056]
[1744907214610,1.29219785,594.04,591.75,0.33798056]
[1744907214814,0.33674001,593.93,591.75,0.33798056]
[1744907215018,0.30008201,593.92,591.75,0.33798056]
[1744907215213,0.30008201,593.91,591.75,0.33798056]
[1744907215514,0.33680239,593.82,591.75,0.33798056]
[1744907215718,0.30008201,593.81,591.75,0.33798056]
[1744907215919,0.33686479,593.71,591.75,0.33798056]
[1744907216215,0.30008201,593.7,591.75,0.33798056]
[1744907216416,0.33688182,593.68,591.75,0.33798056]
[1744907216615,0.30008201,593.67,591.76,0.81020814]
[1744907216915,0.30008201,593.66,591.77,0.31020814]
[1744907217118,0.30008201,593.65,591.76,0.5]
[1744907217314,0.30008201,593.64,591.76,0.5]
[1744907217520,0.30008201,593.63,591.76,0.5]
[1744907217720,0.583,593.65,591.77,0.33796914]
[1744907218020,0.33691019,593.63,591.77,0.33796914]
[1744907218214,0.30007596,593.62,591.78,0.31019894]
[1744907218418,0.33692722,593.6,591.79,0.33795772]
[1744907218814,0.30007596,593.59,591.79,0.33795772]
[1744907219018,0.33694425,593.57,591.79,0.33795772]
[1744907219215,0.30007596,593.56,591.79,0.33795772]
[1744907219421,0.33696128,593.54,591.79,0.33795772]
[1744907219621,0.30007596,593.53,591.79,0.33795772]
[1744907219821,0.33697831,593.51,591.79,0.33795772]
[1744907220022,0.30007596,593.5,591.79,0.33795772]
[1744907220216,0.33699534,593.48,591.79,0.33795772]
[1744907220418,0.30007596,593.47,591.79,0.33795772]
[1744907220617,0.33701238,593.45,591.79,0.33795772]
[1744907220820,0.30007596,593.44,591.79,0.33795772]
[1744907221023,0.30007596,593.44,591.8,0.31020429]
[1744907221626,0.30007596,593.44,591.8,0.86520429]
[1744907221825,0.30007596,593.44,591.8,0.555]
[1744907222018,0.33701238,593.45,591.8,0.555]
[1744907222220,0.30004547,593.44,591.8,0.555]
[1744907223527,0.30004547,593.44,591.8,1.042]
[1744907224227,0.29367832,593.43,591.8,1.042]
[1744907224425,0.30004547,593.42,591.8,1.042]
[1744907224623,0.33704078,593.4,591.81,0.3379463]
[1744907224823,0.30004547,593.39,591.81,0.3379463]
[1744907225026,0.33705214,593.38,591.81,0.3379463]
[1744907225630,0.30004164,593.37,591.81,0.3379463]
[1744907225829,0.33706918,593.35,591.81,0.3379463]
[1744907226124,0.30004164,593.34,591.81,0.3379463]
[1744907226625,0.59375714,593.34,591.81,0.3379463]
[1744907226831,0.30004164,593.33,591.81,0.3379463]
[1744907227128,0.30009898,593.32,591.81,0.3379463]
[1744907227628,0.2937155,593.34,591.81,0.3379463]
[1744907227629,0.30009898,593.31,591.81,0.3379463]
[1744907227929,0.30009898,593.3,591.81,0.3379463]
[1744907228129,0.30009898,593.33,591.81,0.3379463]
[1744907228328,0.30009898,593.32,591.81,0.3379463]
[1744907228528,0.30009898,593.33,591.81,0.3379463]
[1744907231629,0.2937155,593.34,591.81,0.3379463]
[1744907231825,0.30014646,593.33,591.81,0.3379463]
[1744907232226,0.3370919,593.31,591.81,0.3379463]
[1744907232425,0.30014646,593.3,591.81,0.3379463]
[1744907233226,0.3370919,593.31,591.81,0.3379463]
[1744907233427,0.29379733,593.29,591.81,0.3379463]
[1744907233625,0.30016183,593.28,591.81,0.3379463]
[1744907233830,0.33712031,593.26,591.81,0.3379463]
[1744907234131,0.30016183,593.25,591.81,0.3379463]
[1744907234431,0.33713736,593.23,591.81,0.3379463]
[1744907234626,0.30016183,593.22,591.81,0.3379463]
[1744907234830,0.33715441,593.2,591.81,0.3379463]
[1744907235130,0.30016183,593.19,591.81,0.3379463]
[1744907235431,0.33717146,593.17,591.81,0.3379463]
[1744907235730,0.30016183,593.16,591.81,0.3379463]
[1744907236427,0.29380725,593.15,591.81,0.3379463]
[1744907236631,0.3371942,593.13,591.81,0.3379463]
[1744907236833,0.30016183,593.12,591.81,0.3379463]
[1744907237026,0.33721126,593.1,591.81,0.3379463]
[1744907237226,0.30016183,593.09,591.81,0.3379463]
[1744907237429,0.33722832,593.07,591.81,0.3379463]
[1744907237731,0.30016183,593.06,591.81,0.3379463]
[1744907237931,0.33723969,593.05,591.81,0.3379463]
[1744907238327,0.30016183,593.04,591.81,0.3379463]
[1744907239131,0.33725106,593.03,591.81,0.3379463]
[1744907239326,0.30016183,593.02,591.81,0.3379463]
[1744907239529,0.33726244,593.01,591.81,0.3379463]
[1744907239724,0.30016183,593.0,591.81,0.3379463]
[1744907239927,0.33727381,592.99,591.81,0.3379463]
[1744907240230,0.30016183,592.98,591.81,0.3379463]
[1744907240430,0.33728519,592.97,591.81,0.3379463]
[1744907240628,0.30016183,592.96,591.81,0.3379463]
[1744907241430,0.30012053,592.95,591.81,0.3379463]
[1744907241630,0.30012053,592.96,591.81,0.3379463]
[1744907241831,0.30012053,592.95,591.81,0.3379463]
[1744907242033,0.30012053,592.94,591.81,0.3379463]
[1744907242231,0.30012053,592.96,591.81,0.3379463]
[1744907242433,0.30012053,592.95,591.81,0.3379463]
[1744907242625,0.30012053,592.96,591.81,0.3379463]
[1744907242827,0.30012053,592.95,591.81,0.3379463]
[1744907243132,0.30010962,592.94,591.81,0.3379463]
[1744907243332,0.30010962,592.96,591.81,0.3379463]
[1744907243533,0.30010962,592.95,591.81,0.3379463]
[1744907243728,0.30010962,592.96,591.81,0.3379463]
[1744907246435,0.30010962,592.96,591.81,0.9679463]
[1744907247737,0.33728519,592.97,591.81,0.9679463]
[1744907247938,0.30008572,592.96,591.81,0.9679463]
[1744907248737,0.33728519,592.97,591.81,0.9679463]
[1744907249933,0.30007501,592.96,591.81,0.9679463]
[1744907252638,0.33728519,592.97,591.81,0.9679463]
[1744907252838,0.30008325,592.95,591.82,0.31021459]
[1744907253034,0.30008325,592.94,591.82,0.64815518]
[1744907253239,0.30008325,592.96,591.83,0.31021459]
[1744907255436,0.30008325,592.96,591.84,0.33792917]
[1744907255637,0.30008325,592.96,591.85,0.31021459]
[1744907255835,0.30008325,592.96,591.86,0.33791775]
[1744907256139,0.33728519,592.97,591.86,0.33791775]
[1744907260441,0.33728519,592.97,591.87,0.644]
[1744907260840,0.33728519,592.97,591.88,0.33790633]
[1744907261645,0.772,592.96,591.88,0.33790633]
[1744907268845,0.30011792,592.95,591.88,0.33790633]
[1744907272657,0.30011792,592.95,591.89,0.705]
[1744907275358,0.772,592.96,591.89,0.705]
[1744907275659,0.30019785,592.95,591.89,0.705]
[1744907277455,0.30019785,592.95,591.9,0.628]
[1744907278857,0.33730794,592.93,591.9,0.628]
[1744907279161,0.30019785,592.92,591.9,0.628]
[1744907279557,0.33732501,592.9,591.9,0.628]
[1744907279763,0.30019785,592.89,591.9,0.628]
[1744907280362,0.33733639,592.88,591.9,0.628]
[1744907280562,0.30019785,592.87,591.9,0.628]
[1744907280963,0.33734777,592.86,591.9,0.628]
[1744907281162,0.30019785,592.85,591.9,1.167]
[1744907281459,0.63761734,592.84,591.9,1.167]
[1744907281663,0.63762303,592.83,591.9,1.167]
[1744907281862,0.63762872,592.82,591.9,1.167]
[1744907282058,0.63763441,592.81,591.9,1.167]
[1744907282257,0.6376401,592.8,591.9,1.167]
[1744907282459,0.63764579,592.79,591.9,1.167]
[1744907282663,0.63765148,592.78,591.9,1.167]
[1744907282857,0.33739899,592.77,591.9,1.167]
[1744907283056,0.30026087,592.76,591.9,1.167]
[1744907283260,0.33741037,592.75,591.9,1.167]
[1744907283563,0.30026087,592.74,591.9,1.167]
[1744907283865,0.33742176,592.73,591.9,1.167]
[1744907284064,0.30026087,592.72,591.9,1.167]
[1744907284258,0.33743314,592.71,591.9,1.167]
[1744907284663,0.30026628,592.7,591.9,1.167]
[1744907287766,0.536,592.7,591.9,1.167]
[1744907287959,0.30023509,592.69,591.9,1.167]
[1744907289565,0.30022431,592.68,591.9,1.167]
[1744907289766,0.30022431,592.69,591.9,1.167]
[1744907290066,0.30022431,592.68,591.9,1.167]
[1744907290262,0.30022431,592.69,591.9,1.167]
[1744907290464,0.30022431,592.68,591.9,1.167]
[1744907290764,0.30022431,592.67,591.9,1.167]
[1744907290960,0.536,592.7,591.9,1.167]
[1744907290961,0.30022431,592.69,591.9,1.167]
[1744907291163,0.30023151,592.68,591.9,1.167]
[1744907291359,0.30023151,592.69,591.9,1.167]
[1744907292666,0.536,592.7,591.9,1.167]
[1744907292860,0.3002276,592.69,591.9,1.167]
[1744907294366,0.536,592.7,591.9,1.167]
[1744907294566,0.30022901,592.69,591.9,1.167]
[1744907297569,0.536,592.7,591.9,1.167]
[1744907297766,0.30022929,592.69,591.9,1.167]
[1744907298570,0.30022929,592.69,591.9,1.698]
[1744907299270,0.536,592.7,591.9,1.698]
[1744907299567,0.30023833,592.69,591.9,1.698]
[1744907302473,0.536,592.7,591.9,1.698]
[1744907302668,0.30022914,592.69,591.9,1.698]
[1744907306278,0.536,592.7,591.9,1.698]
[1744907315188,0.30017591,592.69,591.9,1.698]
[1744907315685,0.33743314,592.71,591.9,1.698]
[1744907316087,0.30017999,592.7,591.9,1.698]
[1744907317390,0.33743314,592.71,591.9,1.698]
[1744907317586,0.3002169,592.7,591.9,1.698]
[1744907318393,1.0422169,592.7,591.9,1.698]
[1744907318593,0.3002169,592.69,591.9,1.698]
[1744907318793,0.30025367,592.68,591.9,1.698]
[1744907318994,0.30025367,592.69,591.9,1.698]
[1744907319188,0.30025367,592.68,591.9,1.698]
[1744907319391,0.30025367,592.69,591.9,1.698]
[1744907319591,0.30025367,592.68,591.9,1.698]
[1744907319791,0.30025367,592.69,591.9,1.698]
[1744907319991,0.30025367,592.68,591.9,1.698]
[1744907320192,0.30025367,592.69,591.9,1.698]
[1744907320393,0.30027318,592.68,591.9,1.698]
[1744907320591,0.30027318,592.67,591.9,1.698]
[1744907320788,0.30027318,592.69,591.9,1.698]
[1744907320991,0.30027318,592.68,591.9,1.698]
[1744907321191,0.30027318,592.69,591.9,1.698]
[1744907326096,0.742,592.7,591.9,1.698]
[1744907336006,0.30024158,592.69,591.9,1.698]
[1744907336704,0.30024158,592.7,591.9,1.698]
[1744907339211,0.97524158,592.7,591.9,1.698]
[1744907339606,0.30024158,592.69,591.9,1.698]
[1744907342818,0.675,592.7,591.9,1.698]
[1744907347823,0.30027314,592.69,591.9,1.698]
[1744907353425,0.30027314,592.7,591.9,1.698]
[1744907357031,1.04127314,592.7,591.9,1.698]
[1744907357332,0.30026924,592.69,591.9,1.698]
[1744907363235,0.30027552,592.68,591.9,1.698]
[1744907363429,0.30027552,592.69,591.9,1.698]
[1744907363628,0.30027552,592.68,591.9,1.698]
[1744907363834,0.30027552,592.69,591.9,1.698]
[1744907364035,0.30027552,592.68,591.9,1.698]
[1744907364436,0.30027552,592.67,591.9,1.698]
[1744907364631,0.30027552,592.69,591.9,1.698]
[1744907366233,0.741,592.7,591.9,1.698]
[1744907366437,0.30027029,592.69,591.9,1.698]
[1744907371039,0.741,592.7,591.9,1.698]
[1744907371241,0.30027823,592.68,591.9,1.698]
[1744907371440,0.30027823,592.69,591.9,1.698]
[1744907371642,0.30027823,592.68,591.9,1.698]
[1744907371942,0.30027823,592.67,591.9,1.698]
[1744907372243,0.30027823,592.66,591.9,1.698]
[1744907372437,0.30027823,592.69,591.9,1.698]
[1744907373543,0.30027823,592.68,591.9,1.698]
[1744907373739,0.30027823,592.7,591.9,1.698]
[1744907374042,0.30027823,592.69,591.9,1.698]
[1744907374338,0.30027823,592.68,591.9,1.698]
[1744907374545,0.30027823,592.67,591.9,1.698]
[1744907374750,0.30027823,592.66,591.9,1.698]
[1744907374941,0.30027823,592.65,591.9,1.698]
[1744907375139,0.30027823,592.7,591.9,1.698]
[1744907375342,0.30027823,592.69,591.9,1.698]
[1744907375545,0.30027823,592.7,591.9,1.698]
[1744907375739,0.30027823,592.68,591.9,1.698]
[1744907375942,0.30027823,592.67,591.9,1.698]
[1744907376244,0.30027823,592.66,591.9,1.698]
[1744907377345,0.569,592.67,591.9,1.698]
[1744907377546,0.30027459,592.66,591.9,1.698]
[1744907382051,0.30027402,592.65,591.9,1.698]
[1744907382250,0.30027402,592.66,591.9,1.698]
[1744907382450,0.569,592.67,591.9,1.698]
[1744907382451,0.30027402,592.65,591.9,1.698]
[1744907382750,0.30027402,592.64,591.9,1.698]
[1744907382947,0.30027402,592.66,591.9,1.698]
[1744907383554,0.569,592.67,591.9,1.698]
[1744907383751,0.30027684,592.66,591.9,1.698]
[1744907388452,0.30030838,592.65,591.9,1.698]
[1744907388652,0.30030838,592.64,591.9,1.698]
[1744907389152,0.30030838,592.66,591.9,1.698]
[1744907389954,0.569,592.67,591.9,1.698]
[1744907390155,0.30029004,592.66,591.9,1.698]
[1744907390355,0.30029004,592.7,591.9,1.698]
[1744907390555,0.63773457,592.69,591.9,1.698]
[1744907390756,0.30029004,592.68,591.9,1.698]
[1744907393061,0.33744453,592.69,591.9,1.698]
[1744907393261,0.608,592.67,591.9,1.698]
[1744907393460,0.30028522,592.66,591.9,1.698]
[1744907396260,0.608,592.67,591.9,1.698]
[1744907396461,0.30028318,592.65,591.9,1.698]
[1744907396759,0.30028318,592.64,591.9,1.698]
[1744907397059,0.30028318,592.66,591.9,1.698]
[1744907397260,0.30028318,592.65,591.9,1.698]
[1744907397460,0.30028318,592.66,591.9,1.698]
[1744907397656,0.30028318,592.65,591.9,1.698]
[1744907397862,0.608,592.67,591.9,1.698]
[1744907398058,0.30028942,592.64,591.9,1.698]
[1744907398257,0.30028942,592.63,591.9,1.698]
[1744907398459,0.30028942,592.66,591.9,1.698]
[1744907398660,0.30028942,592.65,591.9,1.698]
[1744907398859,0.30028942,592.66,591.9,1.698]
[1744907399462,0.608,592.67,591.9,1.698]
[1744907399663,0.30029138,592.66,591.9,1.698]
[1744907401165,0.608,592.67,591.9,1.698]
[1744907401366,0.30024605,592.66,591.9,1.698]
[1744907406068,0.608,592.67,591.9,1.698]
[1744907412375,0.30024948,592.66,591.9,1.698]
[1744907412772,0.608,592.67,591.9,1.698]
[1744907412773,0.30025058,592.65,591.9,1.698]
[1744907412975,0.30025058,592.64,591.9,1.698]
[1744907413177,0.30025058,592.66,591.9,1.698]
[1744907413474,0.30025058,592.65,591.9,1.698]
[1744907413674,0.30025058,592.66,591.9,1.698]
[1744907413874,0.30025058,592.65,591.9,1.698]
[1744907414077,0.30025058,592.66,591.9,1.698]
[1744907414272,0.30025058,592.64,591.9,1.698]
[1744907414572,0.608,592.67,591.9,1.698]
[1744907414879,0.30025565,592.66,591.9,1.698]
[1744907415778,0.608,592.67,591.9,1.698]
[1744907417179,0.30022814,592.66,591.9,1.698]
[1744907417375,0.608,592.67,591.9,1.698]
[1744907417779,0.3002238,592.66,591.9,1.698]
[1744907418481,0.3002238,592.65,591.9,1.698]
[1744907418678,0.3002238,592.68,591.9,1.698]
[1744907418981,0.33744453,592.69,591.9,1.698]
[1744907419281,0.3002257,592.68,591.9,1.698]
[1744907421983,0.682,592.67,591.9,1.698]
[1744907422283,0.3002257,592.66,591.9,1.698]
[1744907423588,0.682,592.67,591.9,1.698]
[1744907426497,0.30025566,592.66,591.9,1.698]
[1744907428496,0.682,592.67,591.9,1.698]
[1744907428796,0.30026947,592.66,591.9,1.698]
[1744907436598,0.682,592.67,591.9,1.698]
[1744907436795,0.30025593,592.66,591.9,1.698]
[1744907438200,0.30025593,592.68,591.9,1.698]
[1744907438403,0.30025593,592.67,591.9,1.698]
[1744907438601,0.30025593,592.68,591.9,1.698]
[1744907438803,0.30025593,592.67,591.9,1.698]
[1744907439101,0.30025593,592.66,591.9,1.698]
[1744907439302,0.30025593,592.68,591.9,1.698]
[1744907439501,0.30025593,592.67,591.9,1.698]
[1744907439801,0.33744453,592.69,591.9,1.698]
[1744907439997,0.30027474,592.68,591.9,1.698]
[1744907441303,0.477,592.67,591.9,1.698]
[1744907441597,0.30027438,592.66,591.9,1.698]
[1744907442198,0.3374673,592.65,591.9,1.698]
[1744907442502,0.30027438,592.64,591.9,1.698]
[1744907452713,0.3374673,592.65,591.9,1.698]
[1744907452925,0.30027889,592.64,591.9,1.698]
[1744907454317,0.33747869,592.63,591.9,1.698]
[1744907454518,0.30027889,592.62,591.9,1.698]
[1744907456020,0.33749008,592.61,591.9,1.698]
[1744907456220,0.30027889,592.6,591.9,1.698]
[1744907456516,0.33750147,592.59,591.9,1.698]
[1744907456715,0.30027889,592.58,591.9,1.698]
[1744907457722,0.30033112,592.57,591.9,1.698]
[1744907458020,0.30033112,592.58,591.9,1.698]
[1744907458217,0.30033112,592.57,591.9,1.698]
[1744907458520,0.30033112,592.58,591.9,1.698]
[1744907458720,0.30033112,592.57,591.9,1.698]
[1744907458920,0.30033112,592.56,591.9,1.698]
[1744907459120,0.30033112,592.58,591.9,1.698]
[1744907459421,0.30033112,592.57,591.9,1.698]
[1744907459720,0.30033112,592.56,591.9,1.698]
[1744907459922,0.33751856,592.56,591.9,1.698]
[1744907460116,0.30033112,592.55,591.9,1.698]
[1744907460824,0.30035233,592.54,591.9,1.698]
[1744907461022,0.30035233,592.55,591.9,1.698]
[1744907461225,0.30035233,592.54,591.9,1.698]
[1744907461425,0.30035233,592.55,591.9,1.698]
[1744907463725,0.30031914,592.54,591.9,1.698]
[1744907463926,0.30031914,592.55,591.9,1.698]
[1744907464128,0.30031914,592.54,591.9,1.698]
[1744907464327,0.30031914,592.55,591.9,1.698]
[1744907464624,0.30031914,592.54,591.9,1.698]
[1744907464823,0.30031914,592.55,591.9,1.698]
[1744907465024,0.30031914,592.54,591.9,1.698]
[1744907465327,0.30032397,592.53,591.9,1.698]
[1744907465527,0.30032397,592.55,591.9,1.698]
[1744907465727,0.30032397,592.54,591.9,1.698]
[1744907465923,0.30032397,592.55,591.9,1.698]
[1744907466826,0.33751856,592.56,591.9,1.698]
[1744907467031,0.707,592.54,591.9,1.698]
[1744907467224,0.30032235,592.53,591.9,1.698]
[1744907468426,0.707,592.54,591.9,1.698]
[1744907468627,0.300351,592.53,591.9,1.698]
[1744907470230,0.707,592.54,591.9,1.698]
[1744907470231,0.30033049,592.52,591.9,1.698]
[1744907470430,0.30033049,592.53,591.9,1.698]
[1744907476635,0.707,592.54,591.9,1.698]
[1744907476836,0.30032082,592.52,591.9,1.698]
[1744907477035,0.30032082,592.51,591.9,1.698]
[1744907477234,0.30032082,592.53,591.9,1.698]
[1744907479837,0.707,592.54,591.9,1.698]
[1744907480032,0.3003555,592.53,591.9,1.698]
[1744907486240,0.3003555,592.55,591.9,1.698]
[1744907486446,0.3003555,592.52,591.9,1.698]
[1744907486746,0.3003555,592.51,591.9,1.698]
[1744907487047,0.3003555,592.55,591.9,1.698]
[1744907487240,0.3003555,592.5,591.9,1.698]